Cogmind - Beta 13 @@@ ROGUE MODE // 2024.04.22 @ 00:03:01 Player: ThatBishHoly Result: Destroyed by as-61658 with Assembled Heavy Rifle Performance ------------- Evolutions (0) 0 Regions Visited (2) 400 Robots Destroyed (14) 70 Value Destroyed (271) 271 Prototype IDs (2) 40 Alien Tech Used (0) 0 Bonus (0) 0 TOTAL SCORE: 781 Bonus ------- None Cogmind --------- Core Integrity 0/250 Matter 290/300 Energy 67/100 System Corruption 1% Temperature Cool (0) Movement Core (150) Ox2 Location -10/Mines Parts ------- > --- POWER (1) -------- (None) > --- PROPULSION (2) --- (None) > --- UTILITY (2) ------ Signal Interpreter Improved Power Shielding > --- WEAPON (2) ------- Heavy Particle Cannon > --- INVENTORY (5) ---- Makeshift Spear Peak State ------------ > --- POWER ------------ Nuclear Core > --- PROPULSION ------- Aluminum Leg Aluminum Leg > --- UTILITY ---------- Signal Interpreter Improved Power Shielding > --- WEAPON ----------- EM Pulse Cannon Minigun > --- INVENTORY -------- Aluminum Leg Heavy Particle Cannon Great Maul Makeshift Spear [Rating: 16] Favorites ----------- Power Light Ion Engine Engine Light Ion Engine Power Core Nuclear Core Propulsion Compact Wheel Leg Aluminum Leg Wheel Compact Wheel Utility Signal Interpreter Processor Signal Interpreter Protection Improved Power Shielding Weapon EM Pulse Gun Energy Gun EM Pulse Gun Energy Cannon EM Pulse Cannon Ballistic Gun Minigun Impact Weapon Great Maul Build | -11 -10 -10 ------- Run | Yrd Mat Min Slots Evolved . | . . . Power . | . . . Propulsion . | . . . Utility . | . . . Weapon . | . . . Parts Attached 20 | 6 3 11 Power 3 | 1 . 2 Engine 2 | 1 . 1 Core 1 | . . 1 Reactor . | . . . Propulsion 6 | 2 . 4 Treads . | . . . Leg 4 | . . 4 Wheel 2 | 2 . . Hover . | . . . Flight . | . . . Utility 4 | . 3 1 Device . | . . . Storage . | . . . Processor 1 | . 1 . Hackware . | . . . Protection 3 | . 2 1 Artifact . | . . . Weapon 7 | 3 . 4 Energy Gun 3 | 3 . . Energy Cannon 2 | . . 2 Ballistic Gun 1 | . . 1 Ballistic Cannon . | . . . Launcher . | . . . Special Weapon . | . . . Impact Weapon 1 | . . 1 Slashing Weapon . | . . . Piercing Weapon . | . . . Special Melee Weapon . | . . . Unidentified Prototypes . | . . . Parts Lost 9 | . . 9 Power 1 | . . 1 Propulsion 4 | . . 4 Utility . | . . . Weapon 4 | . . 4 Highest Loss Streak 7 | . . 7 To Critical Strikes . | . . . Average Slot Usage (%) 92 | . 93 91 Engine 8 | . 14 3 Core 5 | . . 9 Leg 11 | . . 21 Wheel 14 | . 28 3 Processor 12 | . 10 14 Protection 12 | . 11 14 Energy Gun 14 | . 28 3 Energy Cannon 5 | . . 9 Ballistic Gun 5 | . . 9 Naked Turns . | . . . Heaviest Build 19 | 7 10 19 Greatest Support 32 | 32 32 32 Greatest Overweight (x) 3 | . . 3 Average Overweight (x) . | . . . Largest Inventory Capacity 5 | 5 5 5 Average Capacity 5 | 5 5 5 Most Carried 4 | 4 2 4 Average Carried 1 | . . 2 Final Capacity 5 | 5 5 5 Final Carried 2 | . 2 1 Class Distribution -------------------- 94% | Mutant 5% | Scavenger-Mutant Dominant Class ---------------- Mutant | -10/Materials Mutant | -10/Mines Resources | -11 -10 -10 ----------- Run | Yrd Mat Min Matter Collected 400 | 231 49 120 Remotely . | . . . Salvage Created 376 | . 121 255 Parts 31 | . 13 18 Haulers Intercepted . | . . . Recyclers Shooed . | . . . Parts Field Recycled . | . . . Retrieved Matter . | . . . Parts Self-Destructed . | . . . Prevented . | . . . Kills | -11 -10 -10 ------- Run | Yrd Mat Min Combat Hostiles Destroyed 14 | . 5 9 Guns 8 | . 5 3 Cannons 5 | . . 5 Classes Destroyed 5 | . 3 2 Operator 1 | . 1 . Watcher 1 | . 1 . Swarmer 8 | . 5 3 Grunt 4 | . . 4 Assembled 2 | . . 2 Best Kill Streak 5 | . 2 5 Combat Bots Only 5 | . 2 5 Max Kills in Single Turn 1 | . 1 1 Gunslinging . | . . . Exploded . | . . . Melee . | . . . Uniques/NPCs Destroyed . | . . . Combat | -11 -10 -10 -------- Run | Yrd Mat Min Hostile Shots Fired 99 | . 15 84 Missed 20 | . 1 19 Damage Taken 1211 | . 105 1106 Core 260 | . 30 230 Absorbed by Shields . | . . . Redirected to Shielding 62 | . 13 49 Core Remaining (%) 100 | 100 . . Volleys Fired 47 | . 12 35 Largest 2 | . 2 2 Hottest 88 | . 80 88 Shots Fired 73 | . 24 49 Gun 54 | . 24 30 Cannon 19 | . . 19 Launcher . | . . . Special . | . . . Kinetic 15 | . . 15 Thermal 5 | . . 5 Explosive . | . . . Electromagnetic 53 | . 24 29 Robot Hit Streak 5 | . 2 5 Robot Miss Streak 4 | . 4 4 Penetration Max . | . . . Secondary Targets . | . . . Shots Hit Robots 35 | . 8 27 Core Hits 19 | . 7 12 Critical Kills . | . . . Critical Parts Destroyed . | . . . Critical Strikes 2 | . 1 1 Corrupt 2 | . 1 1 Melee Attacks 6 | . . 6 Impact 6 | . . 6 Slashing . | . . . Piercing . | . . . Sneak Attacks . | . . . Combat Hostiles . | . . . Follow-up Attacks . | . . . Damage Inflicted 742 | . 118 624 Guns 369 | . 118 251 Cannons 275 | . . 275 Explosions 87 | . . 87 Melee . | . . . Ramming 11 | . . 11 Kinetic 120 | . . 120 Thermal 162 | . . 162 Explosive . | . . . Electromagnetic 449 | . 118 331 Impact . | . . . Slashing . | . . . Piercing . | . . . Highest Corruption 1 | . . 1 Average Corruption 1 | . . 1 Corruption Purged . | . . . Corruption Blocked . | . . . Effects 1 | . . 1 Message Errors 1 | . . 1 Overload Shots . | . . . Overflow Damage 27 | . . 27 Projectiles 27 | . . 27 Explosions . | . . . Melee . | . . . Knockbacks . | . . . Impact . | . . . Kinetic . | . . . Secondary . | . . . Self-Inflicted Damage 3 | . . 3 Shots . | . . . Rammed . | . . . Targets Rammed 1 | . . 1 Kicked 1 | . . 1 Crushed . | . . . Highest Temperature 196 | . 72 196 Average Temperature 70 | . 27 84 Received Heat Transfer 132 | . . 132 Siege Activations . | . . . Robots Corrupted 1 | . . 1 Combat Hostiles 1 | . . 1 Parts Fried . | . . . Impact Corruptions . | . . . Robots Melted . | . . . Combat Hostiles . | . . . Parts Melted . | . . . Heat Transferred 261 | . . 261 Parts Sabotaged . | . . . Parts Stolen . | . . . Parts Stripped . | . . . Power Chain Reactions 2 | . . 2 Alert | -11 -10 -10 ------- Run | Yrd Mat Min Peak Influence 227 | . 227 150 Initial 10 | . . 10 Average 81 | . 112 69 Maximum Alert Level 1 | . 1 . Low Security (%) 90 | 100 76 100 Level 1 9 | . 23 . Level 2 . | . . . Level 3 . | . . . Level 4 . | . . . Level 5 . | . . . High Security . | . . . Max Security . | . . . Squads Dispatched 1 | . . 1 Investigation 1 | . . 1 Extermination . | . . . Reinforcement . | . . . Assault . | . . . Garrison . | . . . Intercept . | . . . Searches Triggered . | . . . Construction Impeded . | . . . Haulers Reinforced . | . . . Active Scanning Responses . | . . . Cargo Convoy Interrupts . | . . . Stealth | -11 -10 -10 --------- Run | Yrd Mat Min Distress Signals . | . . . Communications Jammed . | . . . Distress Signals . | . . . Times Spotted 33 | . 13 20 Peak Tracking Total 5 | . 5 5 Tactical Retreats 1 | . 1 . Traps | -11 -10 -10 ------- Run | Yrd Mat Min Traps Triggered . | . . . Indirectly . | . . . Trap Hack Attempts . | . . . Triggered . | . . . Disarmed . | . . . Reprogrammed . | . . . Reused . | . . . Traps Extracted . | . . . Installed . | . . . Triggered . | . . . Machines | -11 -10 -10 ---------- Run | Yrd Mat Min Machines Disabled 1 | . 1 . Max in Single Turn 1 | . 1 . Machines Repaired . | . . . Machines Dismantled . | . . . Machines Sabotaged . | . . . Overloaded Fab Kills . | . . . Hacking | -11 -10 -10 --------- Run | Yrd Mat Min Machines Accessed 5 | . 4 1 Terminals 4 | . 4 . Fabricators . | . . . Repair Stations . | . . . Recycling Units . | . . . Scanalyzers . | . . . Garrison Access . | . . . Total Hacks 9 | . 8 1 Successful 6 | . 5 1 Failed 3 | . 3 . Catastrophic . | . . . Database Lockouts . | . . . Manual . | . . . Terminals 8 | . 8 . Fabricators . | . . . Repair Stations . | . . . Recycling Units . | . . . Scanalyzers . | . . . Garrison Access . | . . . Terminal Hacks 6 | . 5 1 Prototype ID Bank 1 | . 1 . Open Door 1 | . . 1 Scanalyzer Index 1 | . 1 . Zone Layout 3 | . 3 . Fabricator Hacks . | . . . Repair Station Hacks . | . . . Recycling Unit Hacks . | . . . Scanalyzer . | . . . Garrison Access Hacks . | . . . Unauthorized Hacks . | . . . Terminals . | . . . Fabricators . | . . . Repair Stations . | . . . Recycling Units . | . . . Scanalyzers . | . . . Garrison Access . | . . . Data Cores Recovered 1 | . 1 . Used . | . . . Hacking Detections 2 | . 2 . Full Trace Events . | . . . Feedback Events . | . . . Feedback Blocked . | . . . Robot Schematics Acquired . | . . . Robots Built . | . . . Authchips . | . . . Time . | . . . Total Robot Build Rating . | . . . Part Schematics Acquired . | . . . Parts Built . | . . . Authchips . | . . . Time . | . . . Total Part Build Rating . | . . . Parts Repaired . | . . . Time . | . . . Parts Recycled . | . . . Recycled Matter . | . . . Retrieved Matter . | . . . Retrieved Components . | . . . Parts Scanalyzed . | . . . Part Schematics Acquired . | . . . Parts Damaged . | . . . Bothacking | -11 -10 -10 ------------ Run | Yrd Mat Min Used RIF Installer . | . . . Robots Hacked . | . . . Non-combat . | . . . Combat . | . . . Robot Hacks Applied . | . . . Relay Couplers Released . | . . . Fabnet Peak Effective % . | . . . Robots Rewired . | . . . Allies Hacked . | . . . Hacks Repelled . | . . . Allies | -11 -10 -10 -------- Run | Yrd Mat Min Total Allies . | . . . Largest Group . | . . . Highest-Rated Group . | . . . Highest-Rated Ally . | . . . Total Orders . | . . . Ally Attacks . | . . . Total Damage . | . . . Kills . | . . . Allies Corrupted . | . . . Allies Melted . | . . . Intel | -11 -10 -10 ------- Run | Yrd Mat Min Robot Analysis Total . | . . . Derelict Logs Recovered . | . . . Drone Launches . | . . . Drone Recoveries . | . . . Exploration | -11 -10 -10 ------------- Run | Yrd Mat Min Turns Passed 1023 | 85 426 512 Spaces Moved 786 | 87 383 316 Core 37 | 29 . 8 Treads . | . . . Legs 278 | . . 278 Wheels 471 | 58 383 30 Hover . | . . . Flight . | . . . Fastest Speed 50 | 50 100 100 Average Speed 105 | 83 100 118 Slowest Speed 200 | 100 100 200 Overloaded Moves . | . . . Propulsion Burnouts . | . . . Robots Hopped . | . . . Cave-ins Triggered . | . . . Exploration Rate (%) 38 | 3 62 50 Regions Visited 2 Branch Regions 1 Pre-discovered Areas . | . . . Known Exits Taken 1 | . 1 . Unknown Exits Taken 1 | 1 . . Scrap Searched . | . . . Spaces Dug . | . . . Terrain Destroyed 13 | . . 13 Melee . | . . . Projectile 1 | . . 1 AOE 12 | . . 12 Terrain Rammed 1 | . . 1 Walls Destroyed . | . . . Machines Disabled . | . . . Actions | -11 -10 -10 --------- Run | Yrd Mat Min Total 895 | 99 401 395 Wait 9 | . . 9 Move 784 | 86 382 316 Hop . | . . . Pick Up 20 | 6 4 10 Fast Attach . | . . . Attach 13 | 6 2 5 Detach . | . . . Swap 7 | . 1 6 Drop 7 | 1 . 6 Fire 47 | . 12 35 Melee 6 | . . 6 Ram 1 | . . 1 Kick 1 | . . 1 Crush . | . . . Escape Stasis . | . . . Rewire . | . . . Trap . | . . . Miscellaneous . | . . . Route ------- -11/Scrapyard -10/Materials (discovered 2 exits: [*Mat] / *Min) -10/Mines (discovered 1 exit: [*Mat]) History --------- Turn | Location | Event 19 | -11/Scrapyard | Discovered new exit (range 15) 86 | -11/Scrapyard | Entered Materials 288 | -10/Materials | Discovered new exit (range 15) 317 | -10/Materials | Build established: Mutant 499 | -10/Materials | Discovered new exit (range 12) 511 | -10/Materials | Identified exit to Mines 512 | -10/Materials | Entered Mines 630 | -10/Mines | Met a Derelict shopkeep closing up shop 778 | -10/Mines | A weapon hastily lodged in a ceiling crevice suddenly fell to the ground 813 | -10/Mines | Discovered new exit (range 13) 946 | -10/Mines | Assembled infested the area 982 | -10/Mines | Core integrity fell below 50% 1002 | -10/Mines | Core integrity fell below 20% 1024 | -10/Mines | Destroyed by as-61658 with Assembled Heavy Rifle Last Messages --------------- 00998_ as-93657 sneak attacks. 00998_ K-01 Serf destroyed. 00999_ K-01 Serf collects debris. 01000_ as-93657 destroyed. 01000_ K-01 Serf collects debris. 01003_ as-73720 destroyed. 01003_ Aluminum Leg destroyed. 01003_ K-01 Serf collects debris. 01003_ as-49881 sneak attacks. 01003_ K-01 Serf destroyed. 01006_ D-53 Grenadier destroyed. 01006_ K-01 Serf collects debris. 01009_ as-49881 sneak attacks. 01009_ R-06 Scavenger destroyed. 01009_ K-01 Serf collects debris. 01009_ Destroyed Asb. Hover Unit. 01012_ The unstable cave ceiling collapses. 01013_ as-49881 destroyed. 01014_ K-01 Serf collects debris. 01023_ Great Maul destroyed. Map ----- +----------------------------------------------------+ | ???????????????????????????#" * !"#?????????????# | | ???????????????????????????## ##?????????????# | | ???????????????????????????### ###?????????????# | | ??????????????????????????## X ##????????????## | | ??????????????????????##### #????????????## | | ??????????????????????# #????????????# | | ??????????????????????# ##????????????# | | ??????################# #### #????####?????# | | ??????#[ #??## #??### ##????# | | ??????#%############### #???# #### #???## | | #######%###???????????# #???# #???#* | | # !*= #???????????# #???# #???##% | | # """ """ #???????????# ##??# #### % ##???#= | | # """ """ #?????????### #??## ##?## [##??##%[# | | # """ """ #????????## ##??####### ####*%## | | # #????????# ###??# =##!=##? | | # """ """ #????????# ##?# %*[%=##?? | | # """ """ #????????# #### #### [% *##??? | | # """ """ #????????# ##?## *!##???? | | # #????????# ##########????? | | # """ #?????????# % ##?????????? | | # """ #?????????## ##????????? | | # ! """ #??????????# %* #????????? | | # #??????????## !%= #????????? | | # #?????????## [= ##????????? | | ###########?????????# @ =%=% ###?????????? | | ???????????????????# *!*!! % ;#???????????? | | ???????????????????# !%= *##???????????? | | ???????????????????## =[ =%! ??????????? | | ????????????????????# ?????????? | | ????????????????????#a a = ?????????? | | ??????????????????? # a !% ????????? | | ??????????????????? # = ???????? | | ??????????????????### ##### #### ["# ?????? | | ????????????????????###????#####???#? ###? ????? | | ???????????????????????????????????????????## ???? | | ?????????????????????????????????????????????????? | | ?????????????????????????????????????????????????? | | ?????????????????????????????????????????????????? | | ?????????????????????????????????????????????????? | | ?????????????????????????????????????????????????? | | ?????????????????????????????????????????????????? | | ?????????????????????????????????????????????????? | | ?????????????????????????????????????????????????? | | ?????????????????????????????????????????????????? | | ?????????????????????????????????????????????????? | | ?????????????????????????????????????????????????? | | ?????????????????????????????????????????????????? | | ?????????????????????????????????????????????????? | | ?????????????????????????????????????????????????? | +----------------------------------------------------+ Best States ------------- Heat Dissipation 25 Energy Generation 14 Energy Capacity 240 Matter Stores 300 Matter Capacity 300 Sight Range 16 Terrain Scan Density 10 Armor Coverage 150 Power Shielding 66 Weapon Shielding 33 Evasion (%) 55 Item Schematics ----------------- None Robot Schematics ------------------ None Fabricated ------------ Nothing Alien Tech Used ----------------- None Achievements -------------- None Challenges ------------ None Game ------ Seed ShadeMachineDissipator Manual? 0 Play Time 00:16:06 Cumulative 11.5 hours Start 2024.04.21 @ 23:49:41 End 2024.04.22 @ 00:03:01 Sessions 1 Manual Loads 0 Difficulty Rogue Special Mode None Game No. 33 Rogue 33 Adventurer 0 Explorer 0 Win Type - Total 0 Types 0/0/0/0/0/0/0/0/0 Lore% 12 Gallery% 23 Achievement% 19 Wizard Run 0 Options --------- Layout 1 ASCII 0 Keyboard 0 Movement Arrows Keybinds 0 Fullscreen 1 Font 16/SmallcapsGlow Map View 50x40 Zoom Use 0% Tactical HUD 1 Map Filters NONE Filters NONE Steam SD RUN: 8fb233aa-3a2d-4fc0-98e5-47f0385bfd32